fUST/lending_fUST_20250107
["ID","MTS","AMOUNT","RATE_DAILY","PERIOD"]
[347942516,1736231356195,-151.0,0.0001697,2]
[347942517,1736231356217,-151.0,0.0001697,2]
[347942518,1736231356238,-156.533504,0.0001697,2]
[347942519,1736231356259,-187.194687,0.0001697,2]
[347942520,1736231356280,-151.0,0.0001697,2]
[347942521,1736231356303,-151.0,0.0001697,2]
[347942522,1736231356325,-151.0,0.0001697,2]
[347942523,1736231356351,-151.0,0.0001697,2]
[347942524,1736231356373,-151.0,0.0001697,2]
[347942525,1736231356395,-151.0,0.0001697,2]
[347942526,1736231356417,-151.0,0.0001697,2]
[347942527,1736231356438,-151.0,0.0001697,2]
[347942528,1736231356462,-151.0,0.0001697,2]
[347942529,1736231356485,-151.0,0.0001697,2]
[347942530,1736231356508,-151.0,0.0001697,2]
[347942531,1736231356530,-151.0,0.0001697,2]
[347942532,1736231356552,-151.0,0.0001697,2]
[347942533,1736231356573,-294.068256,0.0001697,2]
[347942534,1736231356599,-151.0,0.0001697,2]
[347942535,1736231356620,-151.0,0.0001697,2]
[347942536,1736231356641,-151.0,0.0001697,2]
[347942537,1736231356661,-151.0,0.0001697,2]
[347942538,1736231356683,-151.0,0.0001697,2]
[347942539,1736231356705,-151.0,0.0001697,2]
[347942540,1736231356727,-184.11627,0.0001697,2]
[347942541,1736231356748,-487.51187146,0.00016973,2]
[347942542,1736231356770,-151.0,0.00016986,2]
[347942543,1736231356793,-151.0,0.00016986,2]
[347942544,1736231356816,-151.0,0.00016986,2]
[347942545,1736231356842,-151.0,0.00016986,2]
[347942546,1736231356864,-151.0,0.00016986,2]
[347942547,1736231356887,-151.0,0.00016986,2]
[347942548,1736231356909,-151.0,0.00016986,2]
[347942549,1736231356931,-151.0,0.00016986,2]
[347942550,1736231356956,-151.0,0.00016986,2]
[347942551,1736231356978,-151.0,0.00016986,2]
[347942552,1736231357000,-151.0,0.00016986,2]
[347942553,1736231357196,-151.0,0.00016986,2]
[347942554,1736231357218,-151.0,0.00016986,2]
[347942555,1736231357240,-151.0,0.00016986,2]
[347942556,1736231357263,-151.0,0.00016986,2]
[347942557,1736231357285,-151.0,0.00016986,2]
[347942558,1736231357307,-151.0,0.00016986,2]
[347942559,1736231357332,-151.0,0.00016986,2]
[347942560,1736231357354,-151.0,0.00016986,2]
[347942561,1736231357375,-151.0,0.00016986,2]
[347942562,1736231357396,-151.0,0.00016986,2]
[347942563,1736231357416,-151.0,0.00016986,2]
[347942564,1736231357437,-151.0,0.00016986,2]
[347942565,1736231357459,-151.0,0.00016986,2]
[347942566,1736231357481,-151.0,0.00016986,2]
[347942567,1736231357502,-151.0,0.00016986,2]
[347942568,1736231357524,-151.0,0.00016986,2]
[347942569,1736231357544,-151.0,0.00016986,2]
[347942570,1736231357565,-151.0,0.00016986,2]
[347942571,1736231357588,-151.0,0.00016986,2]
[347942572,1736231357609,-151.0,0.00016986,2]
[347942573,1736231357629,-151.0,0.00016986,2]
[347942574,1736231357649,-151.0,0.00016986,2]
[347942575,1736231357669,-151.0,0.00016986,2]
[347942576,1736231357689,-151.0,0.00016986,2]
[347942577,1736231357709,-151.0,0.00016986,2]
[347942578,1736231357729,-151.0,0.00016986,2]
[347942579,1736231357748,-151.0,0.00016986,2]
[347942580,1736231357769,-151.0,0.00016986,2]
[347942581,1736231357789,-151.0,0.00016986,2]
[347942582,1736231357810,-151.0,0.00016986,2]
[347942583,1736231357835,-151.0,0.00016986,2]
[347942584,1736231357856,-221.692126,0.00016986,2]
[347942585,1736231357878,-151.0,0.00016986,2]
[347942586,1736231357900,-151.0,0.00016986,2]
[347942587,1736231357921,-151.0,0.00016986,2]
[347942588,1736231357942,-151.0,0.00016986,2]
[347942589,1736231357964,-151.0,0.00016986,2]
[347942590,1736231357988,-151.0,0.00016986,2]
[347942591,1736231358009,-151.0,0.00016986,2]
[347942592,1736231358031,-151.0,0.00016986,2]
[347942593,1736231358052,-151.0,0.00016986,2]
[347942594,1736231358073,-151.0,0.00016986,2]
[347942595,1736231358099,-151.0,0.00016986,2]
[347942596,1736231358120,-167.328493,0.00016986,2]
[347942597,1736231358142,-151.0,0.00016987,2]
[347942598,1736231358166,-223.334483,0.00016987,2]
[347942599,1736231358188,-151.0,0.00016987,2]
[347942600,1736231358210,-151.0,0.00016988,2]
[347942601,1736231358232,-151.0,0.00016988,2]
[347942602,1736231358254,-151.0,0.00016988,2]
[347942603,1736231358276,-151.0,0.00016988,2]
[347942604,1736231358297,-151.0,0.00016988,2]
[347942605,1736231358319,-151.0,0.00016988,2]
[347942606,1736231358344,-151.377614,0.00016991,2]
[347942607,1736231358366,-151.0,0.00016991,2]
[347942608,1736231358389,-341.834063,0.00016991,2]
[347942609,1736231358412,-341.834063,0.00016991,2]
[347942610,1736231358434,-341.834063,0.00016991,2]
[347942611,1736231358458,-341.834063,0.00016991,2]
[347942612,1736231358481,-341.834063,0.00016991,2]
[347942613,1736231358502,-341.834063,0.00016991,2]
[347942614,1736231358523,-341.834063,0.00016991,2]
[347942615,1736231358552,-341.834063,0.00016991,2]
[347942616,1736231358583,-341.834063,0.00016991,2]
[347942617,1736231358608,-341.834063,0.00016991,2]
[347942618,1736231358637,-341.834063,0.00016991,2]
[347942619,1736231358667,-341.834063,0.00016991,2]
[347942620,1736231358696,-341.834063,0.00016991,2]
[347942621,1736231358727,-341.834063,0.00016991,2]
[347942622,1736231358756,-151.0,0.00016991,2]
[347942623,1736231358787,-23293.04490676,0.00016993,2]
[347942624,1736231358817,-187.419844,0.00016993,2]
[347942625,1736231358849,-341.834063,0.00016993,2]
[347942626,1736231358874,-341.834063,0.00016993,2]
[347942627,1736231358901,-151.0,0.00016993,2]
[347942628,1736231358931,-151.0,0.00016993,2]
[347942629,1736231358959,-151.0,0.00016993,2]
[347942630,1736231358988,-8670.68334621,0.00017,7]
[347942632,1736231405651,200.0,0.00014995,2]
[347942710,1736231432777,-300.0,0.00015173,2]
[347942713,1736231432787,-121.49265646,0.00015174,2]
[347942715,1736231432798,-29.50734354,0.00015174,2]
[347942717,1736231432808,-151.0,0.00015174,2]
[347942719,1736231432818,-151.0,0.00015174,2]
[347942721,1736231432827,-51.92427952,0.00015174,2]
[347942848,1736231438443,-99.07572048,0.00015174,2]
[347942850,1736231438452,-151.0,0.00015174,2]
[347942851,1736231438461,-151.0,0.00015174,2]
[347942853,1736231438472,-151.0,0.00015174,2]
[347942855,1736231438481,-151.0,0.00015174,2]
[347942857,1736231438492,-151.0,0.00015174,2]
[347942859,1736231438502,-151.0,0.00015174,2]
[347942861,1736231438511,-151.0,0.00015174,2]
[347942863,1736231438521,-151.0,0.00015174,2]
[347942865,1736231438530,-151.0,0.00015176,2]
[347942867,1736231438540,-218.96914,0.00015176,2]
[347942869,1736231438550,-151.0,0.00015177,2]
[347942871,1736231438559,-151.0,0.00015177,2]
[347942873,1736231438568,-178.627077,0.0001518,2]
[347942875,1736231438577,-178.627077,0.0001518,2]
[347942877,1736231438586,-178.627077,0.0001518,2]
[347942879,1736231438596,-178.627077,0.0001518,2]
[347942881,1736231438605,-178.627077,0.0001518,2]
[347942884,1736231438615,-178.627077,0.0001518,2]
[347942887,1736231438624,-178.627077,0.0001518,2]
[347942889,1736231438633,-178.627077,0.0001518,2]
[347942891,1736231438644,-178.627077,0.0001518,2]
[347942893,1736231438653,-178.627077,0.0001518,2]
[347942895,1736231438662,-178.627077,0.0001518,2]
[347942897,1736231438671,-178.627077,0.0001518,2]
[347942899,1736231438681,-178.627077,0.00015182,2]
[347942901,1736231438690,-178.627077,0.00015182,2]
[347942903,1736231438699,-178.627077,0.00015182,2]
[347942905,1736231438708,-178.627077,0.00015182,2]
[347942907,1736231438718,-178.627077,0.00015183,2]
[347942909,1736231438727,-178.627077,0.00015183,2]
[347942911,1736231438735,-151.0,0.00015183,2]
[347942913,1736231438745,-178.627077,0.00016214,2]
[347942915,1736231438755,-178.62707862,0.00016214,2]
[347942917,1736231438765,-420.0,0.00016603,2]
[347942919,1736231438775,-151.0,0.00016988,2]
[347942921,1736231438784,-232.298735,0.00016988,2]
[347942923,1736231438793,-151.0,0.0001699,2]
[347942925,1736231438803,-3131.30576115,0.00017,7]
[347942927,1736231438812,-13210.25458028,0.00017,2]
[347942929,1736231438822,-530.14132777,0.00017078,2]
[347942931,1736231438831,-500.98584964,0.00017106,2]
[347942934,1736231438840,-727.14022229,0.00017383,2]
[347942936,1736231438850,-352.9591083,0.00017482,2]
[347942938,1736231438859,-499.0,0.00017534,2]
[347942940,1736231438870,-310.39572853,0.00017538,2]
[347942942,1736231438879,-2032.46077685,0.000176,2]
[347942944,1736231438889,-1453.34877256,0.00017616,2]
[347942945,1736231438898,-436.24327245,0.00017661,2]
[347942947,1736231438907,-151.0,0.000177,2]
[347942949,1736231438916,-12840.79623224,0.00017706,2]
[347942951,1736231438925,-500.0,0.00017799,2]
[347942953,1736231438935,-500.0,0.00017799,2]
[347942955,1736231438944,-500.0,0.00017799,2]
[347942957,1736231438953,-500.0,0.00017799,2]
[347942959,1736231438962,-500.0,0.00017799,2]
[347942961,1736231438971,-500.0,0.00017799,2]
[347942963,1736231438981,-500.0,0.00017799,2]
[347942965,1736231438990,-198.7278693,0.00017799,2]
[347942967,1736231438999,-500.0,0.00017799,2]
[347942969,1736231439008,-557.92845051,0.00017799,2]
[347942971,1736231439017,-500.0,0.00017799,2]
[347942974,1736231439027,-500.0,0.00017799,2]
[347942976,1736231439035,-500.0,0.00017799,2]
[347942978,1736231439045,-500.0,0.00017799,2]
[347942980,1736231439054,-500.0,0.00017799,2]
[347942982,1736231439063,-500.0,0.00017799,2]
[347942984,1736231439071,-500.0,0.00017799,2]
[347942986,1736231439080,-500.0,0.00017799,2]
[347942988,1736231439090,-500.0,0.00017799,2]
[347942990,1736231439099,-441.9655481,0.00017799,2]
[347942992,1736231439109,-500.0,0.00017799,2]
[347942994,1736231439118,-10342.80753788,0.000178,2]
[347942996,1736231439128,-24002.44887987,0.000178,2]
[347942998,1736231439142,-611.556,0.000178,2]
[347943000,1736231439153,-1153.346855,0.000178,2]
[347943003,1736231439168,-1500.0,0.000178,2]
[347943005,1736231439182,-12676.30842133,0.000178,2]
[347943112,1736231440584,-1227.05139664,0.000178,2]
[347943113,1736231440742,-5091.8448692,0.000178,2]
[347943156,1736231443602,-604.82946097,0.000178,2]
[347943158,1736231443614,-473.54650463,0.000178,2]
[347943160,1736231443623,-26.45022787,0.000178,2]
[347943162,1736231443634,-10102.23317858,0.000178,2]
[347943164,1736231443647,-3386.50659355,0.000178,2]
[347943166,1736231443655,-11837.7573989,0.000178,2]
[347943169,1736231443667,-2530.87052017,0.000178,2]
[347943171,1736231443676,-151.0,0.000179,2]
[347943172,1736231443686,-466.58876583,0.00017991,2]
[347943233,1736231446574,-33.41123417,0.00017991,2]
[347943234,1736231446583,-500.0,0.00017991,2]
[347943235,1736231446593,-500.0,0.00017991,2]
[347943236,1736231446602,-456.76962481,0.00017991,2]
[347943237,1736231446612,-151.0,0.00017997,2]
[347943238,1736231446622,-151.0,0.00017997,2]
[347943239,1736231446631,-918.58772102,0.00018,2]
[347943240,1736231446643,-946.78830164,0.00018,2]
[347943241,1736231446655,-134.62397734,0.00018,2]
[347943242,1736231446665,-151.0,0.00018,2]
[347943243,1736231446674,-961.78575076,0.00018,2]
[347943244,1736231446694,-631.56,0.00018,2]
[347943259,1736231551312,775.98689442,0.00015001,2]
[347943260,1736231647721,782.86825438,0.00015001,2]
[347943261,1736231696000,2197.8085168,0.00014176,2]
[347943265,1736231835219,356.7046744,0.00014348,2]
[347943266,1736231919569,262.3219926,0.00014348,2]
[347943267,1736231920355,24900.0,0.00014234,2]
[347943268,1736231931220,400.0,0.00013973,2]
[347943271,1736232052456,1292.849001,0.00014251,2]
[347943273,1736232174568,3825.1302187,0.00014376,2]
[347943274,1736232185645,152.02301642,0.00015001,2]
[347943279,1736232389088,2115.7719778,0.00014242,2]
[347943280,1736232405377,-258.70749671,0.00015077,2]
[347943281,1736232405400,-300.0,0.00015169,2]
[347943282,1736232405424,-19485.0,0.0001517,2]
[347943283,1736232405447,-151.0,0.00015171,2]
[347943284,1736232405470,-151.0,0.00015171,2]
[347943285,1736232405492,-177.072238,0.00015171,2]
[347943286,1736232405513,-472.981299,0.00015171,2]
[347943287,1736232405534,-472.981299,0.00015171,2]
[347943288,1736232405555,-472.981299,0.00015171,2]
[347943289,1736232405579,-472.981299,0.00015171,2]
[347943290,1736232405600,-472.981299,0.00015171,2]
[347943291,1736232405621,-472.981299,0.00015171,2]
[347943292,1736232405643,-472.981299,0.00015171,2]
[347943293,1736232405670,-472.981299,0.00015171,2]
[347943294,1736232405690,-472.981299,0.00015171,2]
[347943295,1736232405711,-472.981299,0.00015171,2]
[347943296,1736232405730,-151.0,0.00015171,2]
[347943297,1736232405752,-151.0,0.00015171,2]
[347943298,1736232405772,-472.981299,0.00015173,2]
[347943299,1736232405794,-472.981299,0.00015173,2]
[347943300,1736232405814,-472.981299,0.00015174,2]
[347943301,1736232405834,-472.981299,0.00015174,2]
[347943302,1736232405855,-472.981299,0.00015174,2]
[347943303,1736232405877,-472.981299,0.00015174,2]
[347943304,1736232405899,-591.417749,0.00015177,2]
[347943305,1736232405921,-591.417749,0.00015177,2]
[347943306,1736232405941,-591.417749,0.00015177,2]
[347943307,1736232405962,-591.417749,0.00015177,2]
[347943308,1736232405983,-591.417749,0.00015177,2]
[347943309,1736232406005,-591.417749,0.00015177,2]
[347943310,1736232406025,-591.417749,0.00015177,2]
[347943311,1736232406046,-591.417749,0.00015177,2]
[347943312,1736232406067,-591.417749,0.00015177,2]
[347943313,1736232406088,-591.417749,0.00015177,2]
[347943314,1736232406110,-591.417749,0.00015177,2]
[347943315,1736232406131,-591.417749,0.00015177,2]
[347943316,1736232406153,-591.417749,0.00015177,2]
[347943317,1736232406176,-591.417749,0.00015177,2]
[347943318,1736232406198,-591.417749,0.00015177,2]
[347943319,1736232406219,-591.417749,0.00015177,2]
[347943320,1736232406239,-472.981299,0.0001518,2]
[347943321,1736232406261,-472.981299,0.0001518,2]
[347943322,1736232406288,-591.417749,0.00015183,2]
[347943323,1736232406309,-591.417749,0.00015183,2]
[347943324,1736232406330,-472.981299,0.00015183,2]
[347943325,1736232406351,-472.981302,0.00015183,2]
[347943326,1736232406372,-246.09166629,0.00015367,2]
[347943327,1736232406394,-414.1123206,0.00015375,2]
[347943328,1736232406418,-500.0,0.00015375,2]
[347943329,1736232406440,-228.65871672,0.00015375,2]
[347943330,1736232406463,-500.0,0.00015375,2]
[347943331,1736232406488,-209.52884236,0.00015375,2]
[347943332,1736232406509,-41127.2977541,0.00015376,2]
[347943333,1736232406531,-591.417749,0.00016109,2]
[347943334,1736232406552,-591.417743,0.00016109,2]
[347943335,1736232406576,-639.8185113,0.00016187,2]
[347943336,1736232406599,-258.70749671,0.00016229,2]
[347943337,1736232406621,-598.19242973,0.00016327,2]
[347943338,1736232406643,-420.0,0.00016599,2]
[347943339,1736232406668,-258.70749671,0.00017381,2]
[347943340,1736232406689,-153.5079275,0.00017425,2]
[347943341,1736232406710,-214.1837382,0.00017425,2]
[347943342,1736232406731,-473.0365178,0.00017452,2]
[347943343,1736232406752,-542.7189945,0.000175,2]
[347943344,1736232406772,-13199.13035574,0.0001762,2]
[347943345,1736232406793,-482.9858916,0.00017683,2]
[347943346,1736232406814,-499.0,0.00017999,2]
[347943347,1736232406835,-6921.56064843,0.00018,2]
[347943349,1736232433084,-300.0,0.00017999,2]
[347943350,1736232433105,-2371.04364242,0.00018,2]
[347943351,1736232550103,-291.75834332,0.00017454,2]
[347943355,1736232588900,248.61182108,0.00017051,2]
[347943370,1736232632827,-4013.90405422,0.00017051,2]
[347943371,1736232632837,-335.85515072,0.0001763,2]
[347943372,1736232632847,-368.20775011,0.00017819,2]
[347943373,1736232632857,-196.45599594,0.000179,2]
[347943374,1736232632867,-300.0,0.00017999,2]
[347943375,1736232632878,-5391.65785179,0.00018,2]
[347943376,1736232632888,-749.0,0.000181,2]
[347943377,1736232632898,-150.0,0.000181,2]
[347943378,1736232632908,-150.0,0.000181,2]
[347943379,1736232632918,-302.542245,0.000181,2]
[347943380,1736232632929,-302.542245,0.000181,2]
[347943381,1736232632939,-1862.324192,0.000181,2]
[347943382,1736232632954,-1862.324192,0.000181,2]
[347943383,1736232632966,-5265.70087634,0.000181,2]
[347943384,1736232632976,-5265.70087627,0.000181,2]
[347943385,1736232632987,-1146.00418059,0.000181,2]
[347943386,1736232633169,-4119.69669568,0.000181,2]
[347943387,1736232633179,-5265.70087627,0.000181,2]
[347943388,1736232633187,-3869.32092788,0.000181,2]
[347943389,1736232633476,-1396.37994839,0.000181,2]
[347943390,1736232633485,-5265.70087627,0.00018107,2]
[347943391,1736232633495,-158.22573102,0.0001817,2]
[347943447,1736232640924,-342.23330385,0.0001817,2]
[347943449,1736232640934,-803.102,0.0001822,2]
[347943450,1736232640944,-153.0,0.00018274,2]
[347943452,1736232640954,-153.7491537,0.00018274,2]
[347943454,1736232640964,-430.6355466,0.00018274,2]
[347943457,1736232640976,-153.7491537,0.00018274,2]
[347943459,1736232640985,-429.1785974,0.00018274,2]
[347943460,1736232640995,-153.7491537,0.00018274,2]
[347943462,1736232641005,-153.5824176,0.00018274,2]
[347943464,1736232641015,-341.834063,0.00018298,2]
[347943466,1736232641025,-341.834063,0.00018298,2]
[347943468,1736232641034,-152.761876,0.00018298,2]
[347943470,1736232641044,-152.761876,0.00018298,2]
[347943472,1736232641053,-198.105238,0.00018298,2]
[347943474,1736232641063,-198.105238,0.00018298,2]
[347943476,1736232641074,-208.21330154,0.00018313,2]
[347943580,1736232642867,-337.43574855,0.00018313,2]
[347943892,1736232646668,-11227.63250039,0.00018313,2]
[347943894,1736232646678,-5265.70087627,0.00018348,2]
[347943897,1736232646690,-151.0,0.000184,2]
[347943898,1736232646699,-2000.0,0.000185,2]
[347943900,1736232646708,-465.89929458,0.00018567,2]
[347943902,1736232646718,-5265.70087627,0.0001859,2]
[347943904,1736232646727,-749.0,0.000186,2]
[347943906,1736232646738,-150.0,0.000186,2]
[347943908,1736232646748,-150.0,0.000186,2]
[347943910,1736232646757,-302.542245,0.000186,2]
[347943912,1736232646766,-302.542245,0.000186,2]
[347943914,1736232646775,-1862.324192,0.000186,2]
[347943916,1736232646784,-1862.324192,0.000186,2]
[347943918,1736232646792,-154.0,0.000186,2]
[347943920,1736232646802,-151.0,0.000187,2]
[347943922,1736232646811,-341.834063,0.00018706,2]
[347943924,1736232646822,-341.834056,0.00018706,2]
[347943926,1736232646831,-151.0,0.000188,2]
[347943928,1736232646840,-1000.0,0.00018813,2]
[347943930,1736232646849,-5265.70087627,0.00018831,2]
[347943932,1736232646859,-151.0,0.000189,2]
[347943934,1736232646868,-1598.85491792,0.000189,2]
[347943936,1736232646877,-258.67530634,0.000189,2]
[347943938,1736232646886,-1000.0,0.00018917,2]
[347943940,1736232646896,-1000.0,0.00018924,2]
[347943942,1736232646906,-258.67530634,0.00018945,2]
[347943944,1736232646915,-1000.0,0.00018962,2]
[347943946,1736232646924,-1170.5277798,0.00018986,2]
[347943948,1736232646933,-258.67530634,0.00018989,2]
[347943950,1736232646943,-17272.64548262,0.00018993,7]
[347943952,1736232646952,-151.0,0.00018994,2]
[347943954,1736232646962,-151.0,0.00018994,2]
[347943956,1736232646971,-151.0,0.00018994,2]
[347943958,1736232646980,-151.0,0.00018995,2]
[347943960,1736232646989,-151.0,0.00018995,2]
[347943961,1736232647001,-151.0,0.00018995,2]
[347943964,1736232647011,-151.0,0.00018995,2]
[347943966,1736232647022,-151.0,0.00018995,2]
[347943968,1736232647031,-152.761876,0.00018995,2]
[347943970,1736232647040,-152.761876,0.00018995,2]
[347943972,1736232647048,-198.105238,0.00018995,2]
[347943974,1736232647057,-198.105238,0.00018995,2]
[347943976,1736232647066,-662.78239111,0.00018997,2]
[347943978,1736232647076,-5007.39925277,0.00019,2]
[347943980,1736232647085,-12973.06014588,0.00019,5]
[347943982,1736232647094,-2000.0,0.00019,4]
[347943984,1736232647103,-9775.0,0.00019,2]
[347943986,1736232647112,-302.542245,0.00019,2]
[347943988,1736232647122,-302.542245,0.00019,2]
[347943990,1736232647131,-1862.324192,0.00019,2]
[347943992,1736232647141,-595.87779164,0.00019,2]
[347944034,1736232647588,-296.78262694,0.00019,2]
[347944054,1736232648207,-969.66377342,0.00019,2]
[347944055,1736232648218,-151.0,0.00019,2]
[347944056,1736232648227,-151.0,0.00019,2]
[347944057,1736232648237,-151.0,0.00019,2]
[347944058,1736232648247,-151.0,0.00019,2]
[347944059,1736232648256,-152.761876,0.00019,2]
[347944060,1736232648265,-152.761876,0.00019,2]
[347944061,1736232648275,-302.90913937,0.00019,2]
[347944062,1736232648285,-198.105238,0.00019,2]
[347944063,1736232648295,-198.105238,0.00019,2]
[347944064,1736232648304,-1000.0,0.00019001,2]
[347944065,1736232648314,-258.67530634,0.00019034,2]
[347944066,1736232648323,-171.0,0.00019057,2]
[347944067,1736232648333,-152.0,0.00019057,2]
[347944068,1736232648342,-152.0,0.00019057,2]
[347944069,1736232648352,-152.0,0.00019057,2]
[347944070,1736232648362,-202.4952074,0.00019059,2]
[347944071,1736232648371,-1029.851,0.00019059,2]
[347944072,1736232648380,-151.0,0.00019059,2]
[347944073,1736232648391,-260.0,0.0001907,2]
[347944074,1736232648400,-151.0,0.0001907,2]
[347944075,1736232648409,-151.0,0.0001907,2]
[347944076,1736232648419,-151.0,0.0001907,2]
[347944077,1736232648428,-151.0,0.00019072,2]
[347944078,1736232648438,-4781.09621142,0.00019072,2]
[347944088,1736233038381,400.0,0.00013973,2]
[347945941,1736233755153,-413.004,0.00016221,2]
[347945942,1736233755180,-723.8193786,0.00016385,2]
[347945943,1736233755202,-887.0594786,0.00016803,2]
[347945944,1736233755222,-654.5917733,0.00016886,2]
[347945980,1736233832036,-93.1727754,0.00016886,2]
[347945981,1736233832046,-300.0,0.00017643,2]
[347945982,1736233832056,-24900.0,0.00017644,2]
[347945983,1736233832066,-926.904731,0.00017946,2]
[347945984,1736233832079,-4170.25765073,0.00017977,2]
[347945985,1736233832088,-220.14502782,0.00017977,2]
[347945986,1736233832098,-729.0913185,0.00018077,2]
[347945987,1736233832108,-3757.90204665,0.000181,2]
[347945988,1736233832118,-3757.90204654,0.00018107,2]
[347945989,1736233832130,-786.953,0.0001812,2]
[347945990,1736233832139,-152.0,0.00018283,2]
[347945991,1736233832149,-3757.90204654,0.00018314,2]
[347945992,1736233832159,-352.9591083,0.00018411,2]
[347945993,1736233832169,-352.9591083,0.00018411,2]
[347945994,1736233832181,-352.9591083,0.00018411,2]
[347945995,1736233832191,-352.9591083,0.00018411,2]
[347945996,1736233832200,-153.0,0.00018452,2]
[347945997,1736233832209,-3757.90204654,0.00018521,2]
[347945998,1736233832218,-306.0,0.00018552,2]
[347945999,1736233832228,-153.0,0.00018652,2]
[347946000,1736233832238,-13055.06916609,0.00018672,2]
[347946064,1736233840121,-144.06118965,0.00018672,2]
[347946065,1736233840130,-220.14502777,0.00018716,2]
[347946066,1736233840139,-3757.90204654,0.00018728,2]
[347946067,1736233840149,-705.5906753,0.00018881,2]
[347946068,1736233840159,-1065.90327862,0.000189,2]
[347946069,1736233840168,-3757.90204654,0.00018934,2]
[347946070,1736233840179,-1000.0,0.00018951,2]
[347946071,1736233840190,-1000.0,0.00018988,2]
[347946072,1736233840199,-475.60051998,0.00018996,2]
[347946073,1736233840208,-301.87579795,0.00018996,2]
[347946074,1736233840218,-500.0,0.00018996,2]
[347946075,1736233840229,-500.0,0.00018996,2]
[347946076,1736233840239,-500.0,0.00018996,2]
[347946077,1736233840248,-500.0,0.00018996,2]
[347946078,1736233840257,-500.0,0.00018996,2]
[347946079,1736233840266,-500.0,0.00018996,2]
[347946080,1736233840275,-500.0,0.00018996,2]
[347946081,1736233840284,-535.67847458,0.00018996,2]
[347946082,1736233840294,-500.0,0.00018996,2]
[347946083,1736233840303,-500.0,0.00018996,2]
[347946084,1736233840313,-500.0,0.00018996,2]
[347946085,1736233840322,-500.0,0.00018996,2]
[347946086,1736233840331,-500.0,0.00018996,2]
[347946087,1736233840341,-186.39812131,0.00018996,2]
[347946088,1736233840350,-500.0,0.00018996,2]
[347946089,1736233840359,-500.0,0.00018996,2]
[347946090,1736233840368,-500.0,0.00018996,2]
[347946091,1736233840378,-9282.0,0.00019,2]
[347946092,1736233840388,-503.5,0.00019,2]
[347946093,1736233840398,-500.0,0.00019,2]
[347946094,1736233840409,-302.8788636,0.00019,2]
[347946095,1736233840419,-261.0,0.0001904,2]
[347946096,1736233840429,-1000.0,0.0001904,2]
[347946097,1736233840439,-1000.0,0.00019042,2]
[347946098,1736233840448,-171.0,0.00019066,2]
[347946099,1736233840457,-152.0,0.00019066,2]
[347946100,1736233840467,-152.0,0.00019066,2]
[347946101,1736233840476,-152.0,0.00019066,2]
[347946102,1736233840486,-152.0,0.00019066,2]
[347946103,1736233840496,-152.0,0.00019066,2]
[347946104,1736233840505,-152.0,0.00019066,2]
[347946105,1736233840515,-152.0,0.00019066,2]
[347946106,1736233840524,-152.0,0.00019066,2]
[347946107,1736233840533,-152.0,0.00019066,2]
[347946108,1736233840542,-152.0,0.00019066,2]
[347946109,1736233840552,-152.0,0.00019066,2]
[347946110,1736233840561,-152.0,0.00019066,2]
[347946111,1736233840570,-152.0,0.00019066,2]
[347946112,1736233840580,-152.0,0.00019066,2]
[347946113,1736233840589,-152.0,0.00019066,2]
[347946114,1736233840599,-152.0,0.00019066,2]
[347946115,1736233840608,-152.0,0.00019066,2]